[Event "Titled Tuesday Blitz October 25 Early 2022"]
[White "Jobava, Baadur"]
[Black "Svane, Frederik"]
[WhiteFideId "13601520"]
[BlackFideId "12923044"]
[WhiteElo "2582"]
[BlackElo "2466"]
[Result "1/2-1/2"]
[Round "05"]
[TimeControl "180+1"]
[Date "2022.10.25"]
[WhiteClock "0:00:04"]
[BlackClock "0:00:06"]

1. d4 {[%clk 0:03:00]}  Nf6 {[%clk 0:02:59]} 2. Bg5 {[%clk 0:02:58]}  e6 {[%clk 0:02:58]} 3. e4 {[%clk 0:02:58]}  h6 {[%clk 0:02:58]} 4. Bxf6 {[%clk 0:02:58]}  Qxf6 {[%clk 0:02:59]} 5. c3 {[%clk 0:02:59]}  d5 {[%clk 0:02:59]} 6. Nd2 {[%clk 0:02:59]}  c5 {[%clk 0:02:59]} 7. Ngf3 {[%clk 0:02:59]}  Nc6 {[%clk 0:02:59]} 8. Bb5 {[%clk 0:02:59]}  Bd7 {[%clk 0:02:59]} 9. O-O {[%clk 0:02:55]}  cxd4 {[%clk 0:02:59]} 10. exd5 {[%clk 0:02:55]}  exd5 {[%clk 0:02:59]} 11. Re1+ {[%clk 0:02:55]}  Be7 {[%clk 0:02:59]} 12. Bxc6 {[%clk 0:02:54]}  bxc6 {[%clk 0:02:56]} 13. cxd4 {[%clk 0:02:53]}  O-O {[%clk 0:02:56]} 14. Ne5 {[%clk 0:02:51]}  Be8 {[%clk 0:02:52]} 15. Rc1 {[%clk 0:02:48]}  Bd6 {[%clk 0:02:51]} 16. Ndf3 {[%clk 0:02:41]}  Rb8 {[%clk 0:02:43]} 17. Re2 {[%clk 0:02:37]}  Rb6 {[%clk 0:02:36]} 18. h3 {[%clk 0:02:28]}  Qf4 {[%clk 0:02:20]} 19. Nd3 {[%clk 0:02:14]}  Qf5 {[%clk 0:02:15]} 20. Nc5 {[%clk 0:02:14]}  Qc8 {[%clk 0:01:56]} 21. Ne5 {[%clk 0:02:10]}  f6 {[%clk 0:01:54]} 22. Nf3 {[%clk 0:01:57]}  Bh5 {[%clk 0:01:53]} 23. Qd3 {[%clk 0:01:49]}  Re8 {[%clk 0:01:34]} 24. Rxe8+ {[%clk 0:01:38]}  Bxe8 {[%clk 0:01:33]} 25. b3 {[%clk 0:01:35]}  Bf7 {[%clk 0:01:26]} 26. Qc3 {[%clk 0:01:30]}  Rb8 {[%clk 0:01:08]} 27. Re1 {[%clk 0:01:27]}  Qf5 {[%clk 0:01:02]} 28. Qd3 {[%clk 0:01:22]}  Qxd3 {[%clk 0:00:49]} 29. Nxd3 {[%clk 0:01:23]}  Kf8 {[%clk 0:00:44]} 30. Rc1 {[%clk 0:01:20]}  Be8 {[%clk 0:00:44]} 31. Nc5 {[%clk 0:01:17]}  Kf7 {[%clk 0:00:42]} 32. Kf1 {[%clk 0:01:10]}  g5 {[%clk 0:00:42]} 33. Ne1 {[%clk 0:01:02]}  Rb4 {[%clk 0:00:38]} 34. Nc2 {[%clk 0:01:02]}  Bxc5 {[%clk 0:00:29]} 35. dxc5 {[%clk 0:01:03]}  Re4 {[%clk 0:00:29]} 36. f3 {[%clk 0:01:03]}  Re5 {[%clk 0:00:28]} 37. Nd4 {[%clk 0:01:02]}  f5 {[%clk 0:00:27]} 38. Re1 {[%clk 0:00:56]}  Kf6 {[%clk 0:00:27]} 39. Rd1 {[%clk 0:00:44]}  f4 {[%clk 0:00:26]} 40. Kf2 {[%clk 0:00:44]}  Re3 {[%clk 0:00:15]} 41. Rd2 {[%clk 0:00:44]}  Ke5 {[%clk 0:00:13]} 42. Ne2 {[%clk 0:00:24]}  Bd7 {[%clk 0:00:12]} 43. g3 {[%clk 0:00:22]}  Bf5 {[%clk 0:00:01]} 44. Nd4 {[%clk 0:00:19]}  Bd7 {[%clk 0:00:01]} 45. gxf4+ {[%clk 0:00:18]}  gxf4 {[%clk 0:00:02]} 46. h4 {[%clk 0:00:18]}  h5 {[%clk 0:00:02]} 47. Ne2 {[%clk 0:00:18]}  Bf5 {[%clk 0:00:03]} 48. Nd4 {[%clk 0:00:15]}  Bd7 {[%clk 0:00:03]} 49. Rd1 {[%clk 0:00:13]}  Rc3 {[%clk 0:00:03]} 50. Rd2 {[%clk 0:00:12]}  Rxc5 {[%clk 0:00:03]} 51. Ne2 {[%clk 0:00:11]}  Bf5 {[%clk 0:00:02]} 52. Nd4 {[%clk 0:00:10]}  Rc3 {[%clk 0:00:02]} 53. Ne2 {[%clk 0:00:09]}  Re3 {[%clk 0:00:02]} 54. Nd4 {[%clk 0:00:08]}  Bd7 {[%clk 0:00:02]} 55. Nc2 {[%clk 0:00:08]}  Rc3 {[%clk 0:00:02]} 56. Nb4 {[%clk 0:00:06]}  Be6 {[%clk 0:00:01]} 57. Nd3+ {[%clk 0:00:06]}  Kf5 {[%clk 0:00:01]} 58. b4 {[%clk 0:00:06]}  d4 {[%clk 0:00:01]} 59. Nc5 {[%clk 0:00:06]}  Bd5 {[%clk 0:00:02]} 60. Nd3 {[%clk 0:00:04]}  Bxa2 {[%clk 0:00:02]} 61. Rxa2 {[%clk 0:00:03]}  Rxd3 {[%clk 0:00:02]} 62. Ra5+ {[%clk 0:00:03]}  Ke6 {[%clk 0:00:02]} 63. Rxh5 {[%clk 0:00:02]}  Rb3 {[%clk 0:00:03]} 64. Rc5 {[%clk 0:00:01]}  Kd6 {[%clk 0:00:03]} 65. Rc4 {[%clk 0:00:02]}  Kd5 {[%clk 0:00:03]} 66. Rc5+ {[%clk 0:00:02]}  Kd6 {[%clk 0:00:04]} 67. Rc4 {[%clk 0:00:03]}  Rb2+ {[%clk 0:00:04]} 68. Ke1 {[%clk 0:00:03]}  Kd5 {[%clk 0:00:04]} 69. Rc5+ {[%clk 0:00:04]}  Kd6 {[%clk 0:00:05]} 70. Rc4 {[%clk 0:00:04]}  d3 {[%clk 0:00:03]} 71. Rxf4 {[%clk 0:00:03]}  Kd5 {[%clk 0:00:03]} 72. h5 {[%clk 0:00:03]}  Rh2 {[%clk 0:00:03]} 73. Kd1 {[%clk 0:00:02]}  c5 {[%clk 0:00:02]} 74. Rf5+ {[%clk 0:00:01]}  Kd4 {[%clk 0:00:02]} 75. Rxc5 {[%clk 0:00:01]}  Ke3 {[%clk 0:00:02]} 76. Re5+ {[%clk 0:00:02]}  Kd4 {[%clk 0:00:02]} 77. Re7 {[%clk 0:00:02]}  Rh1+ {[%clk 0:00:03]} 78. Kd2 {[%clk 0:00:02]}  Rh2+ {[%clk 0:00:03]} 79. Kd1 {[%clk 0:00:03]}  Rxh5 {[%clk 0:00:04]} 80. Rd7+ {[%clk 0:00:02]}  Ke3 {[%clk 0:00:04]} 81. Re7+ {[%clk 0:00:02]}  Kd4 {[%clk 0:00:05]} 82. Rd7+ {[%clk 0:00:03]}  Kc3 {[%clk 0:00:05]} 83. Rc7+ {[%clk 0:00:03]}  Kxb4 {[%clk 0:00:04]} 84. Kd2 {[%clk 0:00:03]}  Rh3 {[%clk 0:00:04]} 85. Rxa7 {[%clk 0:00:02]}  Rxf3 {[%clk 0:00:05]} 86. Rc7 {[%clk 0:00:02]}  Kb5 {[%clk 0:00:04]} 87. Rc8 {[%clk 0:00:02]}  Kb6 {[%clk 0:00:05]} 88. Rc3 {[%clk 0:00:03]}  Kb5 {[%clk 0:00:05]} 89. Rxd3 {[%clk 0:00:03]}  Rxd3+ {[%clk 0:00:06]} 90. Kxd3 {[%clk 0:00:04]} 1/2-1/2


[Site "https://www.chess.com"]

[Event "Titled Tuesday Blitz October 25 Early 2022"]
[White "Kovalev, Vladislav"]
[Black "Caruana, Fabiano"]
[WhiteFideId "13504398"]
[BlackFideId "2020009"]
[WhiteElo "2556"]
[BlackElo "2847"]
[Result "0-1"]
[Round "05"]
[TimeControl "180+1"]
[Date "2022.10.25"]
[WhiteClock "0:00:01"]
[BlackClock "0:00:08"]

1. e4 {[%clk 0:02:57]}  e6 {[%clk 0:02:25]} 2. d4 {[%clk 0:02:57]}  d5 {[%clk 0:02:23]} 3. Nd2 {[%clk 0:02:57]}  Nf6 {[%clk 0:02:23]} 4. e5 {[%clk 0:02:57]}  Nfd7 {[%clk 0:02:23]} 5. Bd3 {[%clk 0:02:58]}  c5 {[%clk 0:02:24]} 6. c3 {[%clk 0:02:59]}  Nc6 {[%clk 0:02:24]} 7. Ne2 {[%clk 0:02:59]}  b6 {[%clk 0:02:24]} 8. O-O {[%clk 0:02:57]}  Bb7 {[%clk 0:02:24]} 9. Nf3 {[%clk 0:02:56]}  Qc7 {[%clk 0:02:23]} 10. a3 {[%clk 0:02:52]}  a5 {[%clk 0:02:21]} 11. h4 {[%clk 0:02:50]}  h6 {[%clk 0:02:21]} 12. Nf4 {[%clk 0:02:49]}  Be7 {[%clk 0:02:13]} 13. h5 {[%clk 0:02:33]}  O-O-O {[%clk 0:02:08]} 14. Re1 {[%clk 0:02:32]}  Kb8 {[%clk 0:02:07]} 15. Qe2 {[%clk 0:02:31]}  c4 {[%clk 0:02:04]} 16. Bc2 {[%clk 0:02:31]}  b5 {[%clk 0:02:05]} 17. Bd2 {[%clk 0:02:03]}  a4 {[%clk 0:02:03]} 18. Rad1 {[%clk 0:01:59]}  Rdg8 {[%clk 0:01:58]} 19. Nh2 {[%clk 0:01:56]}  Nf8 {[%clk 0:01:51]} 20. Qg4 {[%clk 0:01:55]}  Bc8 {[%clk 0:01:47]} 21. Re3 {[%clk 0:01:47]}  f5 {[%clk 0:01:22]} 22. Qh3 {[%clk 0:01:45]}  g5 {[%clk 0:01:16]} 23. hxg6 {[%clk 0:01:46]}  Nxg6 {[%clk 0:01:16]} 24. Nxg6 {[%clk 0:01:39]}  Rxg6 {[%clk 0:01:16]} 25. Rg3 {[%clk 0:01:39]}  Rxg3 {[%clk 0:01:12]} 26. Qxg3 {[%clk 0:01:40]}  Bg5 {[%clk 0:01:08]} 27. Nf3 {[%clk 0:01:33]}  Bxd2 {[%clk 0:01:08]} 28. Rxd2 {[%clk 0:01:34]}  Qf7 {[%clk 0:01:08]} 29. Qh4 {[%clk 0:01:29]}  Ne7 {[%clk 0:01:04]} 30. Qf6 {[%clk 0:00:58]}  Qe8 {[%clk 0:01:04]} 31. g3 {[%clk 0:00:43]}  Ng6 {[%clk 0:00:58]} 32. Nh4 {[%clk 0:00:43]}  Nxh4 {[%clk 0:00:57]} 33. Qxh4 {[%clk 0:00:44]}  Qg6 {[%clk 0:00:54]} 34. f4 {[%clk 0:00:32]}  Bd7 {[%clk 0:00:45]} 35. Rh2 {[%clk 0:00:31]}  Qg7 {[%clk 0:00:43]} 36. Kf2 {[%clk 0:00:29]}  Kc7 {[%clk 0:00:39]} 37. Bd1 {[%clk 0:00:22]}  Be8 {[%clk 0:00:39]} 38. Bf3 {[%clk 0:00:18]}  Kd7 {[%clk 0:00:39]} 39. Ke3 {[%clk 0:00:18]}  Qe7 {[%clk 0:00:37]} 40. Qxe7+ {[%clk 0:00:18]}  Kxe7 {[%clk 0:00:38]} 41. Kf2 {[%clk 0:00:16]}  h5 {[%clk 0:00:38]} 42. Be2 {[%clk 0:00:14]}  Kf8 {[%clk 0:00:38]} 43. Rh3 {[%clk 0:00:06]}  Kg7 {[%clk 0:00:38]} 44. Rh4 {[%clk 0:00:07]}  Bg6 {[%clk 0:00:38]} 45. Ke3 {[%clk 0:00:07]}  Kh6 {[%clk 0:00:38]} 46. Kf2 {[%clk 0:00:07]}  b4 {[%clk 0:00:21]} 47. axb4 {[%clk 0:00:04]}  Ra8 {[%clk 0:00:21]} 48. Rh1 {[%clk 0:00:04]}  a3 {[%clk 0:00:21]} 49. bxa3 {[%clk 0:00:05]}  Rxa3 {[%clk 0:00:21]} 50. Rc1 {[%clk 0:00:04]}  Be8 {[%clk 0:00:21]} 51. Ke3 {[%clk 0:00:05]}  Ra2 {[%clk 0:00:21]} 52. Rb1 {[%clk 0:00:04]}  Bb5 {[%clk 0:00:21]} 53. Bd1 {[%clk 0:00:03]}  Rg2 {[%clk 0:00:18]} 54. Ra1 {[%clk 0:00:03]}  Rxg3+ {[%clk 0:00:18]} 55. Bf3 {[%clk 0:00:04]}  h4 {[%clk 0:00:17]} 56. Kf2 {[%clk 0:00:04]}  Rh3 {[%clk 0:00:13]} 57. Kg2 {[%clk 0:00:02]}  Rg3+ {[%clk 0:00:14]} 58. Kf2 {[%clk 0:00:03]}  Rh3 {[%clk 0:00:14]} 59. Ra5 {[%clk 0:00:02]}  Be8 {[%clk 0:00:14]} 60. Ra6 {[%clk 0:00:03]}  Rh2+ {[%clk 0:00:13]} 61. Kg1 {[%clk 0:00:02]}  Rc2 {[%clk 0:00:13]} 62. Rxe6+ {[%clk 0:00:03]}  Bg6 {[%clk 0:00:14]} 63. Bxd5 {[%clk 0:00:03]}  Rxc3 {[%clk 0:00:14]} 64. Rc6 {[%clk 0:00:03]}  Kg7 {[%clk 0:00:12]} 65. b5 {[%clk 0:00:02]}  Rb3 {[%clk 0:00:11]} 66. Bxc4 {[%clk 0:00:03]}  Rb2 {[%clk 0:00:10]} 67. b6 {[%clk 0:00:02]}  Bh5 {[%clk 0:00:10]} 68. Rc7+ {[%clk 0:00:02]}  Kh6 {[%clk 0:00:10]} 69. Rc6+ {[%clk 0:00:02]}  Kg7 {[%clk 0:00:10]} 70. e6 {[%clk 0:00:03]}  Bf3 {[%clk 0:00:09]} 71. d5 {[%clk 0:00:03]}  h3 {[%clk 0:00:09]} 72. Rc7+ {[%clk 0:00:02]}  Kg6 {[%clk 0:00:09]} 73. Be2 {[%clk 0:00:01]}  Rxe2 {[%clk 0:00:08]} 0-1


[Site "https://www.chess.com"]

[Event "Titled Tuesday Blitz October 25 Early 2022"]
[White "Martinez Alcantara, Jose Eduardo"]
[Black "Kollars, Dmitrij"]
[WhiteFideId "3805662"]
[BlackFideId "12909572"]
[WhiteElo "2703"]
[BlackElo "2584"]
[Result "1-0"]
[Round "05"]
[TimeControl "180+1"]
[Date "2022.10.25"]
[WhiteClock "0:00:07"]
[BlackClock "0:00:05"]

1. e4 {[%clk 0:03:00]}  c5 {[%clk 0:02:56]} 2. Nf3 {[%clk 0:02:59]}  d6 {[%clk 0:02:56]} 3. c3 {[%clk 0:02:59]}  Nf6 {[%clk 0:02:56]} 4. h3 {[%clk 0:02:59]}  Bd7 {[%clk 0:02:54]} 5. Bd3 {[%clk 0:03:00]}  Bc6 {[%clk 0:02:52]} 6. Qe2 {[%clk 0:03:00]}  Nbd7 {[%clk 0:02:51]} 7. O-O {[%clk 0:03:00]}  e6 {[%clk 0:02:48]} 8. Bc2 {[%clk 0:03:00]}  Be7 {[%clk 0:02:49]} 9. d4 {[%clk 0:03:00]}  O-O {[%clk 0:02:49]} 10. Rd1 {[%clk 0:02:47]}  Qc7 {[%clk 0:02:36]} 11. c4 {[%clk 0:02:45]}  cxd4 {[%clk 0:02:34]} 12. Nxd4 {[%clk 0:02:46]}  a6 {[%clk 0:02:32]} 13. Nc3 {[%clk 0:02:46]}  Ne5 {[%clk 0:02:25]} 14. b3 {[%clk 0:02:42]}  Bd7 {[%clk 0:02:24]} 15. Bb2 {[%clk 0:02:42]}  Nc6 {[%clk 0:02:20]} 16. Nxc6 {[%clk 0:02:32]}  Bxc6 {[%clk 0:02:21]} 17. a4 {[%clk 0:02:32]}  Nd7 {[%clk 0:02:17]} 18. Nd5 {[%clk 0:02:18]}  exd5 {[%clk 0:02:11]} 19. exd5 {[%clk 0:02:19]}  Rfe8 {[%clk 0:01:36]} 20. dxc6 {[%clk 0:02:15]}  bxc6 {[%clk 0:01:37]} 21. Qh5 {[%clk 0:01:57]}  g6 {[%clk 0:01:32]} 22. Qf3 {[%clk 0:01:57]}  Ne5 {[%clk 0:01:25]} 23. Qg3 {[%clk 0:01:44]}  Bf6 {[%clk 0:01:22]} 24. Rab1 {[%clk 0:01:44]}  a5 {[%clk 0:01:19]} 25. Rd2 {[%clk 0:01:35]}  Rab8 {[%clk 0:01:16]} 26. Rbd1 {[%clk 0:01:25]}  d5 {[%clk 0:00:55]} 27. cxd5 {[%clk 0:01:12]}  cxd5 {[%clk 0:00:56]} 28. Bd4 {[%clk 0:01:12]}  Bg7 {[%clk 0:00:52]} 29. Be3 {[%clk 0:01:01]}  Rb4 {[%clk 0:00:33]} 30. Bb1 {[%clk 0:00:51]}  h5 {[%clk 0:00:31]} 31. Rxd5 {[%clk 0:00:43]}  h4 {[%clk 0:00:31]} 32. Qh2 {[%clk 0:00:44]}  Rxb3 {[%clk 0:00:22]} 33. Rb5 {[%clk 0:00:44]}  Rxb5 {[%clk 0:00:19]} 34. axb5 {[%clk 0:00:45]}  Qb8 {[%clk 0:00:12]} 35. b6 {[%clk 0:00:42]}  Nc4 {[%clk 0:00:12]} 36. Qxb8 {[%clk 0:00:36]}  Rxb8 {[%clk 0:00:13]} 37. Bg5 {[%clk 0:00:24]}  Rxb6 {[%clk 0:00:10]} 38. Ba2 {[%clk 0:00:25]}  Nd6 {[%clk 0:00:08]} 39. Bxh4 {[%clk 0:00:23]}  Be5 {[%clk 0:00:08]} 40. Re1 {[%clk 0:00:18]}  Bd4 {[%clk 0:00:06]} 41. Rd1 {[%clk 0:00:16]}  Nf5 {[%clk 0:00:06]} 42. Bg5 {[%clk 0:00:13]}  Rb2 {[%clk 0:00:06]} 43. Rd2 {[%clk 0:00:14]}  Rxd2 {[%clk 0:00:06]} 44. Bxd2 {[%clk 0:00:14]}  a4 {[%clk 0:00:06]} 45. Kf1 {[%clk 0:00:15]}  a3 {[%clk 0:00:06]} 46. Ke2 {[%clk 0:00:16]}  Bb2 {[%clk 0:00:07]} 47. Kd3 {[%clk 0:00:16]}  Nd6 {[%clk 0:00:07]} 48. Bb4 {[%clk 0:00:16]}  Nb5 {[%clk 0:00:06]} 49. Kc4 {[%clk 0:00:13]}  Nc7 {[%clk 0:00:06]} 50. Kb3 {[%clk 0:00:11]}  Ne6 {[%clk 0:00:07]} 51. Bd2 {[%clk 0:00:09]}  Nd4+ {[%clk 0:00:06]} 52. Kc4 {[%clk 0:00:09]}  Kg7 {[%clk 0:00:06]} 53. Be3 {[%clk 0:00:06]}  Ne6 {[%clk 0:00:07]} 54. Kb3 {[%clk 0:00:05]}  Kf6 {[%clk 0:00:07]} 55. Kc4 {[%clk 0:00:05]}  Ke5 {[%clk 0:00:08]} 56. Kd3 {[%clk 0:00:06]}  f5 {[%clk 0:00:07]} 57. g3 {[%clk 0:00:06]}  f4 {[%clk 0:00:07]} 58. Bb6 {[%clk 0:00:07]}  fxg3 {[%clk 0:00:07]} 59. fxg3 {[%clk 0:00:08]}  Kf6 {[%clk 0:00:06]} 60. Be3 {[%clk 0:00:08]}  Be5 {[%clk 0:00:06]} 61. Bf2 {[%clk 0:00:05]}  g5 {[%clk 0:00:07]} 62. Ke4 {[%clk 0:00:05]}  Bd6 {[%clk 0:00:07]} 63. h4 {[%clk 0:00:06]}  gxh4 {[%clk 0:00:07]} 64. gxh4 {[%clk 0:00:07]}  Bc5 {[%clk 0:00:07]} 65. Be1 {[%clk 0:00:06]}  Bd6 {[%clk 0:00:07]} 66. Bc3+ {[%clk 0:00:06]}  Ke7 {[%clk 0:00:08]} 67. Kf5 {[%clk 0:00:06]}  Nc7 {[%clk 0:00:07]} 68. h5 {[%clk 0:00:06]}  Nb5 {[%clk 0:00:06]} 69. Bf6+ {[%clk 0:00:07]}  Kd7 {[%clk 0:00:06]} 70. h6 {[%clk 0:00:07]}  Bc5 {[%clk 0:00:05]} 71. h7 {[%clk 0:00:07]}  Nd4+ {[%clk 0:00:05]} 72. Kg6 {[%clk 0:00:07]}  Ne6 {[%clk 0:00:05]} 73. h8=Q {[%clk 0:00:07]} 1-0


[Site "https://www.chess.com"]

[Event "Titled Tuesday Blitz October 25 Early 2022"]
[White "Milikow, Yoav"]
[Black "Salgado Lopez, Ivan"]
[WhiteFideId "2822237"]
[BlackFideId "2257327"]
[WhiteElo "2341"]
[BlackElo "2594"]
[Result "1-0"]
[Round "05"]
[TimeControl "180+1"]
[Date "2022.10.25"]
[WhiteClock "0:00:21"]
[BlackClock "0:00:05"]

1. d4 {[%clk 0:03:00]}  d5 {[%clk 0:02:59]} 2. c4 {[%clk 0:03:00]}  e6 {[%clk 0:03:00]} 3. Nc3 {[%clk 0:02:54]}  Nf6 {[%clk 0:03:01]} 4. Nf3 {[%clk 0:02:54]}  Be7 {[%clk 0:03:00]} 5. g3 {[%clk 0:02:54]}  O-O {[%clk 0:02:56]} 6. Bg2 {[%clk 0:02:54]}  c6 {[%clk 0:02:54]} 7. O-O {[%clk 0:02:52]}  Nbd7 {[%clk 0:02:54]} 8. Qd3 {[%clk 0:02:47]}  b6 {[%clk 0:02:52]} 9. cxd5 {[%clk 0:02:45]}  cxd5 {[%clk 0:02:50]} 10. Bf4 {[%clk 0:02:44]}  Bb7 {[%clk 0:02:49]} 11. Nb5 {[%clk 0:02:41]}  a6 {[%clk 0:02:21]} 12. Nd6 {[%clk 0:02:25]}  Bxd6 {[%clk 0:02:18]} 13. Bxd6 {[%clk 0:02:25]}  Re8 {[%clk 0:02:18]} 14. Rac1 {[%clk 0:02:23]}  Rc8 {[%clk 0:02:17]} 15. Qa3 {[%clk 0:02:12]}  Rxc1 {[%clk 0:02:13]} 16. Rxc1 {[%clk 0:02:12]}  Qa8 {[%clk 0:02:12]} 17. Rc7 {[%clk 0:02:10]}  Rc8 {[%clk 0:02:11]} 18. Ne5 {[%clk 0:01:51]}  Rxc7 {[%clk 0:01:53]} 19. Bxc7 {[%clk 0:01:52]}  Qc8 {[%clk 0:01:48]} 20. Nxd7 {[%clk 0:01:43]}  Nxd7 {[%clk 0:01:41]} 21. Qd6 {[%clk 0:01:43]}  h6 {[%clk 0:01:20]} 22. Bf1 {[%clk 0:01:39]}  b5 {[%clk 0:01:20]} 23. f3 {[%clk 0:01:33]}  Nf6 {[%clk 0:01:19]} 24. Qd8+ {[%clk 0:01:30]}  Qxd8 {[%clk 0:01:18]} 25. Bxd8 {[%clk 0:01:31]}  Kf8 {[%clk 0:01:18]} 26. e3 {[%clk 0:01:28]}  Ke8 {[%clk 0:01:18]} 27. Ba5 {[%clk 0:01:28]}  Kd7 {[%clk 0:01:17]} 28. Kf2 {[%clk 0:01:28]}  Ne8 {[%clk 0:01:16]} 29. Ke1 {[%clk 0:01:28]}  Nd6 {[%clk 0:01:14]} 30. b3 {[%clk 0:01:28]}  Bc6 {[%clk 0:01:13]} 31. Kd2 {[%clk 0:01:28]}  f6 {[%clk 0:01:12]} 32. Bb4 {[%clk 0:01:25]}  Kc7 {[%clk 0:01:12]} 33. Bd3 {[%clk 0:01:23]}  Be8 {[%clk 0:01:12]} 34. g4 {[%clk 0:01:21]}  g5 {[%clk 0:01:09]} 35. h3 {[%clk 0:01:19]}  Kc6 {[%clk 0:01:09]} 36. Ba5 {[%clk 0:01:17]}  Nb7 {[%clk 0:01:04]} 37. Bb4 {[%clk 0:01:17]}  Nd6 {[%clk 0:01:04]} 38. Kc2 {[%clk 0:01:17]}  h5 {[%clk 0:00:59]} 39. Kd2 {[%clk 0:01:16]}  hxg4 {[%clk 0:00:59]} 40. hxg4 {[%clk 0:01:17]}  Bf7 {[%clk 0:00:57]} 41. Kc2 {[%clk 0:01:10]}  Be8 {[%clk 0:00:57]} 42. Kb2 {[%clk 0:01:10]}  Bf7 {[%clk 0:00:56]} 43. Ka3 {[%clk 0:01:10]}  e5 {[%clk 0:00:52]} 44. Bh7 {[%clk 0:01:02]}  e4 {[%clk 0:00:36]} 45. f4 {[%clk 0:00:53]}  Be6 {[%clk 0:00:14]} 46. f5 {[%clk 0:00:52]}  Bd7 {[%clk 0:00:06]} 47. Bg8 {[%clk 0:00:50]}  Bc8 {[%clk 0:00:06]} 48. Ba5 {[%clk 0:00:42]}  Bxf5 {[%clk 0:00:03]} 49. gxf5 {[%clk 0:00:41]}  Nxf5 {[%clk 0:00:04]} 50. Bd2 {[%clk 0:00:28]}  g4 {[%clk 0:00:04]} 51. Bh7 {[%clk 0:00:28]}  g3 {[%clk 0:00:04]} 52. Be1 {[%clk 0:00:28]}  g2 {[%clk 0:00:05]} 53. Bf2 {[%clk 0:00:28]}  Nh4 {[%clk 0:00:05]} 54. Kb4 {[%clk 0:00:24]}  Kb6 {[%clk 0:00:06]} 55. Bg8 {[%clk 0:00:23]}  Nf3 {[%clk 0:00:03]} 56. Bxd5 {[%clk 0:00:22]}  f5 {[%clk 0:00:04]} 57. Be6 {[%clk 0:00:21]}  f4 {[%clk 0:00:04]} 58. exf4 {[%clk 0:00:20]}  g1=Q {[%clk 0:00:05]} 59. Bxg1 {[%clk 0:00:20]}  Nxg1 {[%clk 0:00:06]} 60. f5 {[%clk 0:00:21]}  e3 {[%clk 0:00:07]} 61. Kc3 {[%clk 0:00:20]}  e2 {[%clk 0:00:05]} 62. Kd2 {[%clk 0:00:20]}  Nf3+ {[%clk 0:00:05]} 63. Kxe2 {[%clk 0:00:21]}  Nxd4+ {[%clk 0:00:05]} 64. Kd3 {[%clk 0:00:21]}  Kc5 {[%clk 0:00:05]} 65. b4+ {[%clk 0:00:21]}  Kxb4 {[%clk 0:00:05]} 66. Kxd4 {[%clk 0:00:21]} 1-0


[Site "https://www.chess.com"]

[Event "Titled Tuesday Blitz October 25 Early 2022"]
[White "Pap, Gyula"]
[Black "Agasarov, Benik"]
[WhiteFideId "725323"]
[BlackFideId "13314823"]
[WhiteElo "2519"]
[BlackElo "2152"]
[Result "1-0"]
[Round "05"]
[TimeControl "180+1"]
[Date "2022.10.25"]
[WhiteClock "0:00:45"]
[BlackClock "0:01:33"]

1. g3 {[%clk 0:03:00]}  Nf6 {[%clk 0:02:58]} 2. Bg2 {[%clk 0:03:00]}  g6 {[%clk 0:02:57]} 3. d4 {[%clk 0:03:00]}  Bg7 {[%clk 0:02:57]} 4. e4 {[%clk 0:03:01]}  d6 {[%clk 0:02:57]} 5. Nc3 {[%clk 0:02:59]}  O-O {[%clk 0:02:56]} 6. Nge2 {[%clk 0:03:00]}  e5 {[%clk 0:02:56]} 7. O-O {[%clk 0:02:59]}  Nbd7 {[%clk 0:02:54]} 8. h3 {[%clk 0:02:57]}  Re8 {[%clk 0:02:52]} 9. a4 {[%clk 0:02:55]}  a5 {[%clk 0:02:51]} 10. Kh2 {[%clk 0:02:45]}  exd4 {[%clk 0:02:49]} 11. Nxd4 {[%clk 0:02:45]}  Nc5 {[%clk 0:02:50]} 12. Re1 {[%clk 0:02:42]}  Bd7 {[%clk 0:02:42]} 13. Bf4 {[%clk 0:02:33]}  Nh5 {[%clk 0:02:40]} 14. Be3 {[%clk 0:02:32]}  Nf6 {[%clk 0:02:39]} 15. Bf4 {[%clk 0:02:17]}  Nh5 {[%clk 0:02:39]} 16. Be3 {[%clk 0:02:17]}  Nf6 {[%clk 0:02:39]} 17. f3 {[%clk 0:02:17]}  Nh5 {[%clk 0:02:36]} 18. Bf2 {[%clk 0:02:12]}  c6 {[%clk 0:02:35]} 19. Nb3 {[%clk 0:02:02]}  Nxb3 {[%clk 0:02:33]} 20. cxb3 {[%clk 0:02:03]}  Qe7 {[%clk 0:02:28]} 21. f4 {[%clk 0:01:56]}  Nf6 {[%clk 0:02:23]} 22. Qd2 {[%clk 0:01:52]}  Be6 {[%clk 0:02:23]} 23. Nd5 {[%clk 0:01:25]}  cxd5 {[%clk 0:02:15]} 24. exd5 {[%clk 0:01:25]}  Nxd5 {[%clk 0:02:13]} 25. Bxd5 {[%clk 0:01:21]}  Qd7 {[%clk 0:02:13]} 26. Bg2 {[%clk 0:01:13]}  Bxb3 {[%clk 0:02:11]} 27. Rxe8+ {[%clk 0:01:13]}  Rxe8 {[%clk 0:01:57]} 28. Qxa5 {[%clk 0:01:05]}  Bxb2 {[%clk 0:01:56]} 29. Rb1 {[%clk 0:00:59]}  Re2 {[%clk 0:01:56]} 30. Rxb2 {[%clk 0:00:55]}  Rxb2 {[%clk 0:01:49]} 31. Qa8+ {[%clk 0:00:53]}  Kg7 {[%clk 0:01:46]} 32. Bd4+ {[%clk 0:00:53]}  f6 {[%clk 0:01:47]} 33. Bxb2 {[%clk 0:00:53]}  d5 {[%clk 0:01:45]} 34. a5 {[%clk 0:00:47]}  Bc4 {[%clk 0:01:45]} 35. Qa7 {[%clk 0:00:45]}  Ba6 {[%clk 0:01:42]} 36. Qd4 {[%clk 0:00:45]}  Qe6 {[%clk 0:01:38]} 37. Qxd5 {[%clk 0:00:44]}  Qe2 {[%clk 0:01:37]} 38. Qd7+ {[%clk 0:00:44]}  Kh6 {[%clk 0:01:33]} 39. Bxf6 {[%clk 0:00:45]} 1-0


[Site "https://www.chess.com"]

[Event "Titled Tuesday Blitz October 25 Early 2022"]
[White "Sarana, Alexey"]
[Black "Matlakov, Maxim"]
[WhiteFideId "24133795"]
[BlackFideId "4168003"]
[WhiteElo "2689"]
[BlackElo "2669"]
[Result "0-1"]
[Round "05"]
[TimeControl "180+1"]
[Date "2022.10.25"]
[WhiteClock "0:00:14"]
[BlackClock "0:01:07"]

1. c4 {[%clk 0:03:00]}  c5 {[%clk 0:02:54]} 2. Nf3 {[%clk 0:03:00]}  Nf6 {[%clk 0:02:54]} 3. Nc3 {[%clk 0:02:56]}  Nc6 {[%clk 0:02:54]} 4. d4 {[%clk 0:02:56]}  cxd4 {[%clk 0:02:54]} 5. Nxd4 {[%clk 0:02:56]}  e6 {[%clk 0:02:53]} 6. g3 {[%clk 0:02:56]}  Bc5 {[%clk 0:02:42]} 7. Nb3 {[%clk 0:02:52]}  Be7 {[%clk 0:02:42]} 8. Bg2 {[%clk 0:02:51]}  O-O {[%clk 0:02:40]} 9. O-O {[%clk 0:02:47]}  b6 {[%clk 0:02:40]} 10. e4 {[%clk 0:02:44]}  Bb7 {[%clk 0:02:35]} 11. Qe2 {[%clk 0:02:44]}  d6 {[%clk 0:02:34]} 12. f4 {[%clk 0:02:36]}  a6 {[%clk 0:02:29]} 13. Be3 {[%clk 0:02:35]}  Nd7 {[%clk 0:02:14]} 14. Rfd1 {[%clk 0:02:17]}  Qc7 {[%clk 0:02:11]} 15. Rac1 {[%clk 0:02:08]}  Nc5 {[%clk 0:02:11]} 16. Nd2 {[%clk 0:02:07]}  Rac8 {[%clk 0:02:09]} 17. a3 {[%clk 0:02:04]}  Bf6 {[%clk 0:01:54]} 18. Nd5 {[%clk 0:00:22]}  exd5 {[%clk 0:01:51]} 19. cxd5 {[%clk 0:00:22]}  Nd4 {[%clk 0:01:32]} 20. Qf2 {[%clk 0:00:22]}  Qe7 {[%clk 0:01:32]} 21. Bxd4 {[%clk 0:00:17]}  Nd3 {[%clk 0:01:32]} 22. Rxc8 {[%clk 0:00:14]}  Nxf2 {[%clk 0:01:24]} 23. Rxf8+ {[%clk 0:00:14]}  Qxf8 {[%clk 0:01:22]} 24. Bxf2 {[%clk 0:00:15]}  Qc8 {[%clk 0:01:19]} 25. e5 {[%clk 0:00:13]}  Qc2 {[%clk 0:01:08]} 26. Ne4 {[%clk 0:00:14]}  Qxd1+ {[%clk 0:01:07]} 0-1


[Site "https://www.chess.com"]